Workbook

Sheet Cover Page
B18: ENUGU STATE ELECTRICITY REGULATORY COMMISSION
B19: GENERATION PRICE ESTIMATION MODEL
F21: Version No: | G21: 1
F22: Version's Date | G22: 2024-10-01
F23: Version Name | G23: EERCGPEM_01_10_2024
F24: Today's Date | G24: =NOW() -> 2025-01-30T15:41:21.910
F25: Developed by | G25: S2R Consulting

Sheet Control
B2: Generation Price Estimator
C8: Input | I8: Output
C11: User Guide | I11: Genco Price
C17: Input Data

Sheet User Guide
C4: Table of Content
C5: Worksheet Name | F5: Description
C6: Cover Page | F6: Cover Page of the Model, gives general instructions
C7: Control | F7: This page contains links to other worksheets.
C8: User Guide | F8: Guide the user of the model on how the model works
C9: Input Data | F9: This is where the vast majority of the model inputs , not related to costs are inserted and changed
C10: Fuel Data | F10: This page is where you enter your fuel data, after you have finished populating the input data
C11: Assumption | F11: This is where the equipment and installation costs of the projects are inputted
C12: New Entrant Model (NEM) | F12: This is where the costs assumptions for generation are processed through a DCF calculation to arrive at a tariff figure.
F13: There is a macro on this page that calculates the tariff for a given year.
C14: Embedded Gen Prices | F14: This worksheet uses the NEM sheet to calculate the embedded generation tariff and displays the main components.
C17: Instructions
C18: 0 | F18: Only put data in the Input Worksheets, whose tabs are coloured in aqua.
C20: 1 | F20: Please do not input data into "Gen Prices" Worksheets
C22: 2 | F22: The Input Data sheet should be filled with the project's parameters.
F23: Note that the Construction Period (cell F7) should correspond with the Construction Profile (cells I6:L6).
F24: After completion the button should be clicked.
C26: 3 | F26: The Fuel data should be filled for the relevant years.
C28: 4 | F28: The User should then go to the Gen Prices sheet and click the button there to calculate the tariffs.
C32: Color Convention
C33: Light Orange cells are for regulated inputs inputted by the EERC
C34: Aqua cells indicate cells to be inputted by user
C35: White Cells are used for calculated results

Sheet Input Data
D4: Generation Assumptions | H4: Construction profile
D5: Assumptions | E5: Units | F5: Value | H5: Year | I5: -4 | J5: -3 | K5: -2 | L5: -1
D6: Economic Life | E6: Years | F6: 20 | H6: % | I6: 0% | J6: 0% | K6: 50% | L6: 50%
D7: Construction Period | E7: Years | F7: 2
D8: Starting Year | E8: Years | F8: 2028
D9: Installed capacity | E9: MW | F9: 100
D10: Auxiliary requirements | E10: % | F10: 1.0%
D11: Average Degradation | E11: % | F11: 1.0%
D12: Capacity factor | E12: % | F12: 80.0%
D13: Station MLF | E13: % | F13: 1.0000
D14: ="Capital cost" & " (" & F8-1 & " Basis)" -> Capital cost (2027 Basis) | E14: US $/kW | F14: 350
D15: USD Components Split | E15: % | F15: 100%
D16: Naira Components Split | E16: % | F16: =1-F15 -> 0%
D17: Sent out efficiency (HHV) | E17: % | F17: 38%
D18: Fixed O&M | E18: N/MW/year | F18: 78,074,168
D19: Variable O&M (sent out) | E19: N/MWh | F19: 1,031
D23: Financial Assumptions
D24: Assumptions | E24: Units | F24: Value
D25: Exchange Rate | E25: Naira/$ | F25: 1600
D26: Fuel Cost | E26: $/MMBtu | F26: 2.6
D27: WACC | E27: % | F27: 20%
D28: Tax Rate | E28: % | F28: 32%

Sheet New Entrant Model (NEM)
B1: REGULATOR'S VIEW | I1: REGULATOR'S VIEW | O1: REGULATOR'S VIEW
B2: ENTER CHANGES IN NEW ENTRANT ASSUMPTIONS ON ASSUMPTIONS SHEET
B3: ASSUMPTIONS | F3: Construction profile | I3: NPV Calculation | L3: Construction Period
B4: ="Enter Values for 1st Year Power = " & NEM_year -> Enter Values for 1st Year Power = 2027 | C4: Units | D4: Value | F4: Year | G4: % | K4: -4 | L4: -3 | M4: -2 | N4: -1 | O4: 1 | P4: 2 | Q4: 3 | R4: 4 | S4: 5 | T4: 6 | U4: 7 | V4: 8 | W4: 9 | X4: 10 | Y4: 11 | Z4: 12 | AA4: 13 | AB4: 14 | AC4: 15 | AD4: 16 | AE4: 17 | AF4: 18 | AG4: 19 | AH4: 20 | AI4: 21 | AJ4: 22 | AK4: 23 | AL4: 24 | AM4: 25 | AN4: 26 | AO4: 27 | AP4: 28 | AQ4: 29 | AR4: 30 | AS4: 31 | AT4: 32 | AU4: 33 | AV4: 34 | AW4: 35 | AX4: 36 | AY4: 37 | AZ4: 38 | BA4: 39 | BB4: 40 | BC4: 41
B5: Installed capacity | C5: MW | D5: ='Input Data'!F9 -> 100 | F5: -4 | G5: =TRANSPOSE('Input Data'!I6:L6) -> 0%
B6: Auxiliary requirements | C6: % | D6: ='Input Data'!F10 -> 1.0% | F6: -3 | G6: 0% | I6: Revenue
B7: Average capacity degradation | C7: % | D7: ='Input Data'!F11 -> 1.0% | F7: -2 | G7: 50% | I7: Sent out generation | J7: GWh | O7: =$D$11*O147 -> 687 | P7: 687 | Q7: 687 | R7: 687 | S7: 687 | T7: 687 | U7: 687 | V7: 687 | W7: 687 | X7: 687 | Y7: 687 | Z7: 687 | AA7: 687 | AB7: 687 | AC7: 687 | AD7: 687 | AE7: 687 | AF7: 687 | AG7: 687 | AH7: 687 | AI7: 0 | AJ7: 0 | AK7: 0 | AL7: 0 | AM7: 0 | AN7: 0 | AO7: 0 | AP7: 0 | AQ7: 0 | AR7: =$D$11*AR147 -> 0 | AS7: 0 | AT7: 0 | AU7: 0 | AV7: 0 | AW7: 0 | AX7: 0 | AY7: 0 | AZ7: 0 | BA7: 0 | BB7: 0 | BC7: 0
B8: Capacity factor | C8: % | D8: ='Input Data'!F12 -> 80.0% | F8: -1 | G8: 50% | I8: Capacity Price | J8: N/MWh | O8: =+NECost * IF(D5=0, 0, 1) -> 25,151 | P8: =O8*P147 -> 25,151 | Q8: =P8*Q147 -> 25,151 | R8: 25,151 | S8: 25,151 | T8: 25,151 | U8: 25,151 | V8: 25,151 | W8: 25,151 | X8: 25,151 | Y8: 25,151 | Z8: 25,151 | AA8: 25,151 | AB8: 25,151 | AC8: 25,151 | AD8: 25,151 | AE8: 25,151 | AF8: 25,151 | AG8: 25,151 | AH8: 25,151 | AI8: 0 | AJ8: 0 | AK8: 0 | AL8: 0 | AM8: 0 | AN8: 0 | AO8: 0 | AP8: 0 | AQ8: 0 | AR8: =AQ8*AR147 -> 0 | AS8: =AR8*AS147 -> 0 | AT8: =AS8*AT147 -> 0 | AU8: =AT8*AU147 -> 0 | AV8: =AU8*AV147 -> 0 | AW8: =AV8*AW147 -> 0 | AX8: =AW8*AX147 -> 0 | AY8: =AX8*AY147 -> 0 | AZ8: =AY8*AZ147 -> 0 | BA8: =AZ8*BA147 -> 0 | BB8: =BA8*BB147 -> 0 | BC8: =BB8*BC147 -> 0
B9: Station MLF * | C9: % | D9: ='Input Data'!F13 -> 100.0% | G9: =IF(SUM(G5:G8)<>1, "Error", 1) -> 100% | I9: FOM Price | J9: N/MWh | O9: =IF(O7=0, 0, O19 / O7) -> 11,360 | P9: =IF(P7=0, 0, P19 / P7) -> 11,360 | Q9: 11,360 | R9: 11,360 | S9: 11,360 | T9: 11,360 | U9: 11,360 | V9: 11,360 | W9: 11,360 | X9: 11,360 | Y9: 11,360 | Z9: 11,360 | AA9: 11,360 | AB9: 11,360 | AC9: 11,360 | AD9: 11,360 | AE9: 11,360 | AF9: 11,360 | AG9: 11,360 | AH9: 11,360 | AI9: 0 | AJ9: 0 | AK9: 0 | AL9: 0 | AM9: 0 | AN9: 0 | AO9: 0 | AP9: 0 | AQ9: 0 | AR9: =IF(AR7=0, 0, AR19 / AR7) -> 0 | AS9: 0 | AT9: 0 | AU9: 0 | AV9: 0 | AW9: 0 | AX9: 0 | AY9: 0 | AZ9: 0 | BA9: 0 | BB9: 0 | BC9: 0
B10: Energy generated | C10: GWh | D10: =D5*8.766*D8 -> 701 | I10: VOM Price | J10: N/MWh | O10: =IF(O7=0,0, (O20+O23+O24) / O7) -> 1,031 | P10: =IF(P7=0,0, (P20+P23+P24) / P7) -> 1,031 | Q10: =IF(Q7=0,0, (Q20+Q23+Q24) / Q7) -> 1,031 | R10: 1,031 | S10: 1,031 | T10: 1,031 | U10: 1,031 | V10: 1,031 | W10: 1,031 | X10: 1,031 | Y10: 1,031 | Z10: 1,031 | AA10: 1,031 | AB10: 1,031 | AC10: 1,031 | AD10: 1,031 | AE10: 1,031 | AF10: 1,031 | AG10: 1,031 | AH10: 1,031 | AI10: 0 | AJ10: 0 | AK10: 0 | AL10: 0 | AM10: 0 | AN10: 0 | AO10: 0 | AP10: 0 | AQ10: 0 | AR10: =IF(AR7=0,0, (AR20+AR23+AR24) / AR7) -> 0 | AS10: 0 | AT10: 0 | AU10: 0 | AV10: 0 | AW10: 0 | AX10: 0 | AY10: 0 | AZ10: 0 | BA10: 0 | BB10: 0 | BC10: 0
B11: Energy sent out * | C11: GWh | D11: =D10*(1-D6-D7) -> 687 | I11: Fuel Price | J11: N/MWh | O11: =IF(O7 = 0,0,O21 / O7) -> 41,089 | P11: =IF(P7 = 0,0,P21 / P7) -> 41,089 | Q11: 41,089 | R11: 41,089 | S11: 41,089 | T11: 41,089 | U11: 41,089 | V11: 41,089 | W11: 41,089 | X11: 41,089 | Y11: 41,089 | Z11: 41,089 | AA11: 41,089 | AB11: 41,089 | AC11: 41,089 | AD11: 41,089 | AE11: 41,089 | AF11: 41,089 | AG11: 41,089 | AH11: 41,089 | AI11: 0 | AJ11: 0 | AK11: 0 | AL11: 0 | AM11: 0 | AN11: 0 | AO11: 0 | AP11: 0 | AQ11: 0 | AR11: =IF(AR7 = 0,0,AR21 / AR7) -> 0 | AS11: 0 | AT11: 0 | AU11: 0 | AV11: 0 | AW11: 0 | AX11: 0 | AY11: 0 | AZ11: 0 | BA11: 0 | BB11: 0 | BC11: 0
B12: Energy sent out (unit conversion) * | C12: GBTU | D12: =D11 * 3.41214 -> 2,345 | I12: Total Price | J12: N/MWh | O12: =+O8+O11+O10+O9 -> 78,632 | P12: =+P8+P11+P10+P9 -> 78,632 | Q12: 78,632 | R12: 78,632 | S12: 78,632 | T12: 78,632 | U12: 78,632 | V12: 78,632 | W12: 78,632 | X12: 78,632 | Y12: 78,632 | Z12: 78,632 | AA12: 78,632 | AB12: 78,632 | AC12: 78,632 | AD12: 78,632 | AE12: 78,632 | AF12: 78,632 | AG12: 78,632 | AH12: 78,632 | AI12: 0 | AJ12: 0 | AK12: 0 | AL12: 0 | AM12: 0 | AN12: 0 | AO12: 0 | AP12: 0 | AQ12: 0 | AR12: =+AR8+AR11+AR10+AR9 -> 0 | AS12: 0 | AT12: 0 | AU12: 0 | AV12: 0 | AW12: 0 | AX12: 0 | AY12: 0 | AZ12: 0 | BA12: 0 | BB12: 0 | BC12: 0
B13: Sent out efficiency (LHV) | C13: % | D13: ='Input Data'!F17 -> 38%
B14: Fuel Input (LHV) | C14: GBTU | D14: =D12/D13 -> 6,171
B15: Fuel cost (HHV) | C15: $ / Mbtu | D15: ='Input Data'!F26 -> 2.60 | I15: Total revenue | J15: Nk | O15: =O12 * O7 * $D9 -> 54,039,964 | P15: =P12 * P7 * $D9 -> 54,039,964 | Q15: 54,039,964 | R15: 54,039,964 | S15: 54,039,964 | T15: 54,039,964 | U15: 54,039,964 | V15: 54,039,964 | W15: 54,039,964 | X15: 54,039,964 | Y15: 54,039,964 | Z15: 54,039,964 | AA15: 54,039,964 | AB15: 54,039,964 | AC15: 54,039,964 | AD15: 54,039,964 | AE15: 54,039,964 | AF15: 54,039,964 | AG15: 54,039,964 | AH15: 54,039,964 | AI15: 0 | AJ15: 0 | AK15: 0 | AL15: 0 | AM15: 0 | AN15: 0 | AO15: 0 | AP15: 0 | AQ15: 0 | AR15: =AR12 * AR7 * $D9 -> 0 | AS15: 0 | AT15: 0 | AU15: 0 | AV15: 0 | AW15: 0 | AX15: 0 | AY15: 0 | AZ15: 0 | BA15: 0 | BB15: 0 | BC15: 0
B16: Forex | C16: N / $ | D16: ='Input Data'!F25 -> 1,600
B17: Fuel cost (HHV) | C17: N/MMbtu | D17: =D15*D16 -> 4,160 | I17: Costs
B18: HHV to LHV Conversion | C18: ratio | D18: 1.10 | I18: Capex | J18: Nk | K18: =$G$5*$D$21 -> 0 | L18: =$G$6*$D$21 -> 0 | M18: =$G$7*$D$21 -> 28,000,000 | N18: =$G$8*$D$21 -> 28,000,000
B19: Cost of fuel | C19: Nk | D19: =D14 * D17 * D18 -> 28,238,836 | I19: Fixed O&M | J19: Nk | O19: =$D$23 * O147 -> 7,807,417 | P19: 7,807,417 | Q19: 7,807,417 | R19: 7,807,417 | S19: 7,807,417 | T19: 7,807,417 | U19: 7,807,417 | V19: 7,807,417 | W19: 7,807,417 | X19: 7,807,417 | Y19: 7,807,417 | Z19: 7,807,417 | AA19: 7,807,417 | AB19: 7,807,417 | AC19: 7,807,417 | AD19: 7,807,417 | AE19: 7,807,417 | AF19: 7,807,417 | AG19: 7,807,417 | AH19: 7,807,417 | AI19: 0 | AJ19: 0 | AK19: 0 | AL19: 0 | AM19: 0 | AN19: 0 | AO19: 0 | AP19: 0 | AQ19: 0 | AR19: =$D$23 * AR147 -> 0 | AS19: 0 | AT19: 0 | AU19: 0 | AV19: 0 | AW19: 0 | AX19: 0 | AY19: 0 | AZ19: 0 | BA19: 0 | BB19: 0 | BC19: 0
B20: Capital cost | C20: N/kW | D20: ='Input Data'!F14*'Input Data'!F25 -> 560,000 | I20: Variable O&M | J20: Nk | O20: =$D$25 * O147 -> 708,473 | P20: 708,473 | Q20: 708,473 | R20: 708,473 | S20: 708,473 | T20: 708,473 | U20: 708,473 | V20: 708,473 | W20: 708,473 | X20: 708,473 | Y20: 708,473 | Z20: 708,473 | AA20: 708,473 | AB20: 708,473 | AC20: 708,473 | AD20: 708,473 | AE20: 708,473 | AF20: 708,473 | AG20: 708,473 | AH20: 708,473 | AI20: 0 | AJ20: 0 | AK20: 0 | AL20: 0 | AM20: 0 | AN20: 0 | AO20: 0 | AP20: 0 | AQ20: 0 | AR20: =$D$25 * AR147 -> 0 | AS20: 0 | AT20: 0 | AU20: 0 | AV20: 0 | AW20: 0 | AX20: 0 | AY20: 0 | AZ20: 0 | BA20: 0 | BB20: 0 | BC20: 0
B21: Total capital cost | C21: N 000 | D21: =D20*D5 -> 56,000,000 | I21: Fuel cost | J21: Nk | O21: =$D$19 * O147 -> 28,238,836 | P21: 28,238,836 | Q21: 28,238,836 | R21: 28,238,836 | S21: 28,238,836 | T21: 28,238,836 | U21: 28,238,836 | V21: 28,238,836 | W21: 28,238,836 | X21: 28,238,836 | Y21: 28,238,836 | Z21: 28,238,836 | AA21: 28,238,836 | AB21: 28,238,836 | AC21: 28,238,836 | AD21: 28,238,836 | AE21: 28,238,836 | AF21: 28,238,836 | AG21: 28,238,836 | AH21: 28,238,836 | AI21: 0 | AJ21: 0 | AK21: 0 | AL21: 0 | AM21: 0 | AN21: 0 | AO21: 0 | AP21: 0 | AQ21: 0 | AR21: =$D$19 * AR147 -> 0 | AS21: 0 | AT21: 0 | AU21: 0 | AV21: 0 | AW21: 0 | AX21: 0 | AY21: 0 | AZ21: 0 | BA21: 0 | BB21: 0 | BC21: 0
B22: Fixed O&M | C22: N/MW/year | D22: ='Input Data'!F18 -> 78,074,168 | I22: Taxation | J22: Nk | O22: =O97 -> 4,635,276 | P22: =P97 -> 4,635,276 | Q22: =Q97 -> 4,635,276 | R22: =R97 -> 4,635,276 | S22: 4,635,276 | T22: 4,635,276 | U22: 4,635,276 | V22: 4,635,276 | W22: 4,635,276 | X22: 4,635,276 | Y22: 4,635,276 | Z22: 4,635,276 | AA22: 4,635,276 | AB22: 4,635,276 | AC22: 4,635,276 | AD22: 4,635,276 | AE22: 4,635,276 | AF22: 4,635,276 | AG22: 4,635,276 | AH22: 4,635,276 | AI22: 0 | AJ22: 0 | AK22: 0 | AL22: 0 | AM22: 0 | AN22: 0 | AO22: 0 | AP22: 0 | AQ22: 0 | AR22: =AR97 -> 0 | AS22: 0 | AT22: 0 | AU22: 0 | AV22: 0 | AW22: 0 | AX22: 0 | AY22: 0 | AZ22: 0 | BA22: 0 | BB22: 0 | BC22: 0
B23: Fixed O&M (sent out) | C23: Nk/year | D23: =+D22*D5/1000 -> 7,807,417 | I23: Carbon tax | J23: Nk | O23: =$D$26 *O147 -> 0 | P23: 0 | Q23: 0 | R23: 0 | S23: 0 | T23: 0 | U23: 0 | V23: 0 | W23: 0 | X23: 0 | Y23: 0 | Z23: 0 | AA23: 0 | AB23: 0 | AC23: 0 | AD23: 0 | AE23: 0 | AF23: 0 | AG23: 0 | AH23: 0 | AI23: 0 | AJ23: 0 | AK23: 0 | AL23: 0 | AM23: 0 | AN23: 0 | AO23: 0 | AP23: 0 | AQ23: 0 | AR23: =$D$26 *AR147 -> 0 | AS23: 0 | AT23: 0 | AU23: 0 | AV23: 0 | AW23: 0 | AX23: 0 | AY23: 0 | AZ23: 0 | BA23: 0 | BB23: 0 | BC23: 0
B24: Variable O&M | C24: N/MWh | D24: ='Input Data'!F19 -> 1,031 | I24: Other costs | J24: Nk | O24: =$D$27 * O147 -> 0 | P24: 0 | Q24: 0 | R24: 0 | S24: 0 | T24: 0 | U24: 0 | V24: 0 | W24: 0 | X24: 0 | Y24: 0 | Z24: 0 | AA24: 0 | AB24: 0 | AC24: 0 | AD24: 0 | AE24: 0 | AF24: 0 | AG24: 0 | AH24: 0 | AI24: 0 | AJ24: 0 | AK24: 0 | AL24: 0 | AM24: 0 | AN24: 0 | AO24: 0 | AP24: 0 | AQ24: 0 | AR24: =$D$27 * AR147 -> 0 | AS24: 0 | AT24: 0 | AU24: 0 | AV24: 0 | AW24: 0 | AX24: 0 | AY24: 0 | AZ24: 0 | BA24: 0 | BB24: 0 | BC24: 0
B25: Variable O&M (sent out) | C25: Nk/year | D25: =D24*D11 -> 708,473 | I25: Total costs | J25: Nk | K25: =SUM(K18:K24) -> 0 | L25: 0 | M25: 28,000,000 | N25: 28,000,000 | O25: 41,390,002 | P25: 41,390,002 | Q25: 41,390,002 | R25: 41,390,002 | S25: 41,390,002 | T25: 41,390,002 | U25: 41,390,002 | V25: =SUM(V18:V24) -> 41,390,002 | W25: 41,390,002 | X25: 41,390,002 | Y25: 41,390,002 | Z25: 41,390,002 | AA25: 41,390,002 | AB25: 41,390,002 | AC25: 41,390,002 | AD25: 41,390,002 | AE25: 41,390,002 | AF25: 41,390,002 | AG25: 41,390,002 | AH25: 41,390,002 | AI25: 0 | AJ25: 0 | AK25: 0 | AL25: 0 | AM25: 0 | AN25: 0 | AO25: 0 | AP25: 0 | AQ25: 0 | AR25: =SUM(AR18:AR24) -> 0 | AS25: 0 | AT25: 0 | AU25: 0 | AV25: 0 | AW25: 0 | AX25: 0 | AY25: 0 | AZ25: 0 | BA25: 0 | BB25: 0 | BC25: 0
B26: Carbon Costs | C26: Nk
B27: Other Costs | C27: Nk | I27: After tax cash flow | J27: Nk | K27: =K15-K25 -> 0 | L27: 0 | M27: (28,000,000) | N27: (28,000,000) | O27: 12,649,962 | P27: 12,649,962 | Q27: 12,649,962 | R27: 12,649,962 | S27: 12,649,962 | T27: 12,649,962 | U27: 12,649,962 | V27: =V15-V25 -> 12,649,962 | W27: 12,649,962 | X27: 12,649,962 | Y27: 12,649,962 | Z27: 12,649,962 | AA27: 12,649,962 | AB27: 12,649,962 | AC27: 12,649,962 | AD27: 12,649,962 | AE27: 12,649,962 | AF27: 12,649,962 | AG27: 12,649,962 | AH27: 12,649,962 | AI27: 0 | AJ27: 0 | AK27: 0 | AL27: 0 | AM27: 0 | AN27: 0 | AO27: 0 | AP27: 0 | AQ27: 0 | AR27: =AR15-AR25 -> 0 | AS27: 0 | AT27: 0 | AU27: 0 | AV27: 0 | AW27: 0 | AX27: 0 | AY27: 0 | AZ27: 0 | BA27: 0 | BB27: 0 | BC27: 0
B28: Depreciation (straight line) | C28: % | D28: =1/'Input Data'!F6 -> 5.00%
B29: Project Life | C29: Years | D29: ='Input Data'!F6 -> 20 | I29: NPV | J29: =NPV(WACC,L27:BB27) + K27 + (G9*0) -> -0
B30: Pre-Tax Real WACC | C30: % | D30: ='Input Data'!F27 -> 20.00%
B31: Corporate tax rate | C31: % | D31: ='Input Data'!F28 -> 32%
B33: Tariff Summary | I33: Depreciation
B34: Capacity Payment | C34: N / kWh | D34: =O8 * 0.001 -> 25.151 | K34: -4 | L34: -3 | M34: -2 | N34: -1 | O34: 1 | P34: 2 | Q34: 3 | R34: 4 | S34: 5 | T34: 6 | U34: 7 | V34: 8 | W34: 9 | X34: 10 | Y34: 11 | Z34: 12 | AA34: 13 | AB34: 14 | AC34: 15 | AD34: 16 | AE34: 17 | AF34: 18 | AG34: 19 | AH34: 20 | AI34: 21 | AJ34: 22 | AK34: 23 | AL34: 24 | AM34: 25 | AN34: 26 | AO34: 27 | AP34: 28 | AQ34: 29 | AR34: 30 | AS34: 31 | AT34: 32 | AU34: 33 | AV34: 34 | AW34: 35 | AX34: 36 | AY34: 37 | AZ34: 38 | BA34: 39 | BB34: 40 | BC34: 41
B35: Fixed O&M | C35: N / kWh | D35: =O9 * 0.001 -> 11.360 | I35: Depreciation Years | J35: =1/D28 -> 20
B36: Variable O&M | C36: N / kWh | D36: =O10 * 0.001 -> 1.031 | I36: Book value start of period | J36: Nk | O36: =SUM(K18:N18) -> 56,000,000 | P36: =O38 -> 53,200,000 | Q36: 50,400,000 | R36: 47,600,000 | S36: 44,800,000 | T36: 42,000,000 | U36: 39,200,000 | V36: 36,400,000 | W36: 33,600,000 | X36: 30,800,000 | Y36: 28,000,000 | Z36: 25,200,000 | AA36: 22,400,000 | AB36: 19,600,000 | AC36: 16,800,000 | AD36: 14,000,000 | AE36: 11,200,000 | AF36: 8,400,000 | AG36: 5,600,000 | AH36: 2,800,000 | AI36: 0 | AJ36: 0 | AK36: 0 | AL36: 0 | AM36: 0 | AN36: 0 | AO36: 0 | AP36: 0 | AQ36: 0 | AR36: =AQ38 -> 0 | AS36: =AR38 -> 0 | AT36: =AS38 -> 0 | AU36: =AT38 -> 0 | AV36: =AU38 -> 0 | AW36: =AV38 -> 0 | AX36: =AW38 -> 0 | AY36: =AX38 -> 0 | AZ36: =AY38 -> 0 | BA36: =AZ38 -> 0 | BB36: =BA38 -> 0 | BC36: =BB38 -> 0
B37: Fuel | C37: N / kWh | D37: =O11 * 0.001 -> 41.089 | I37: Depreciation charge | J37: Nk | O37: =$D$28*$O$36 -> 2,800,000 | P37: =IF(AND(P34<$J35,P34<$D29), O37, IF(O38>0, O38, 0)) -> 2,800,000 | Q37: 2,800,000 | R37: 2,800,000 | S37: 2,800,000 | T37: 2,800,000 | U37: 2,800,000 | V37: 2,800,000 | W37: 2,800,000 | X37: 2,800,000 | Y37: 2,800,000 | Z37: 2,800,000 | AA37: 2,800,000 | AB37: 2,800,000 | AC37: 2,800,000 | AD37: 2,800,000 | AE37: 2,800,000 | AF37: 2,800,000 | AG37: 2,800,000 | AH37: 2,800,000 | AI37: 0 | AJ37: 0 | AK37: 0 | AL37: 0 | AM37: 0 | AN37: 0 | AO37: 0 | AP37: 0 | AQ37: 0 | AR37: =IF(AND(AR34<$J35,AR34<$D29), AQ37, IF(AQ38>0, AQ38, 0)) -> 0 | AS37: =IF(AND(AS34<$J35,AS34<$D29), AR37, IF(AR38>0, AR38, 0)) -> 0 | AT37: =IF(AND(AT34<$J35,AT34<$D29), AS37, IF(AS38>0, AS38, 0)) -> 0 | AU37: =IF(AND(AU34<$J35,AU34<$D29), AT37, IF(AT38>0, AT38, 0)) -> 0 | AV37: =IF(AND(AV34<$J35,AV34<$D29), AU37, IF(AU38>0, AU38, 0)) -> 0 | AW37: =IF(AND(AW34<$J35,AW34<$D29), AV37, IF(AV38>0, AV38, 0)) -> 0 | AX37: =IF(AND(AX34<$J35,AX34<$D29), AW37, IF(AW38>0, AW38, 0)) -> 0 | AY37: =IF(AND(AY34<$J35,AY34<$D29), AX37, IF(AX38>0, AX38, 0)) -> 0 | AZ37: =IF(AND(AZ34<$J35,AZ34<$D29), AY37, IF(AY38>0, AY38, 0)) -> 0 | BA37: =IF(AND(BA34<$J35,BA34<$D29), AZ37, IF(AZ38>0, AZ38, 0)) -> 0 | BB37: =IF(AND(BB34<$J35,BB34<$D29), BA37, IF(BA38>0, BA38, 0)) -> 0 | BC37: =IF(AND(BC34<$J35,BC34<$D29), BB37, IF(BB38>0, BB38, 0)) -> 0
B38: Total | C38: N / kWh | D38: =+D34+D36+D37+D35 -> 78.632 | I38: Book value end of period | J38: Nk | O38: =O36-O37 -> 53,200,000 | P38: 50,400,000 | Q38: 47,600,000 | R38: 44,800,000 | S38: 42,000,000 | T38: 39,200,000 | U38: 36,400,000 | V38: 33,600,000 | W38: 30,800,000 | X38: 28,000,000 | Y38: 25,200,000 | Z38: 22,400,000 | AA38: 19,600,000 | AB38: 16,800,000 | AC38: 14,000,000 | AD38: =AD36-AD37 -> 11,200,000 | AE38: 8,400,000 | AF38: 5,600,000 | AG38: 2,800,000 | AH38: 0 | AI38: 0 | AJ38: 0 | AK38: 0 | AL38: 0 | AM38: 0 | AN38: 0 | AO38: 0 | AP38: 0 | AQ38: 0 | AR38: =AR36-AR37 -> 0 | AS38: 0 | AT38: 0 | AU38: 0 | AV38: 0 | AW38: 0 | AX38: 0 | AY38: 0 | AZ38: 0 | BA38: 0 | BB38: 0 | BC38: 0
B41: * Generation revenue is reduced by MLF to allow for transmission loss | I41: Net income and tax
K42: -4 | L42: -3 | M42: -2 | N42: -1 | O42: 1 | P42: 2 | Q42: 3 | R42: 4 | S42: 5 | T42: 6 | U42: 7 | V42: 8 | W42: 9 | X42: 10 | Y42: 11 | Z42: 12 | AA42: 13 | AB42: 14 | AC42: 15 | AD42: 16 | AE42: 17 | AF42: 18 | AG42: 19 | AH42: 20 | AI42: 21 | AJ42: 22 | AK42: 23 | AL42: 24 | AM42: 25 | AN42: 26 | AO42: 27 | AP42: 28 | AQ42: 29 | AR42: 30 | AS42: 31 | AT42: 32 | AU42: 33 | AV42: 34 | AW42: 35 | AX42: 36 | AY42: 37 | AZ42: 38 | BA42: 39 | BB42: 40 | BC42: 41
I44: EBITDA | J44: Nk | K44: 0 | L44: 0 | M44: 0 | N44: 0 | O44: =O15-SUM(O19,O20,O21,O23,O24) -> 17,285,239 | P44: =P15-SUM(P19,P20,P21,P23,P24) -> 17,285,239 | Q44: 17,285,239 | R44: 17,285,239 | S44: 17,285,239 | T44: 17,285,239 | U44: 17,285,239 | V44: 17,285,239 | W44: 17,285,239 | X44: 17,285,239 | Y44: 17,285,239 | Z44: 17,285,239 | AA44: 17,285,239 | AB44: 17,285,239 | AC44: 17,285,239 | AD44: 17,285,239 | AE44: 17,285,239 | AF44: 17,285,239 | AG44: 17,285,239 | AH44: 17,285,239 | AI44: 0 | AJ44: 0 | AK44: 0 | AL44: 0 | AM44: 0 | AN44: 0 | AO44: 0 | AP44: 0 | AQ44: 0 | AR44: =AR15-SUM(AR19,AR20,AR21,AR23,AR24) -> 0 | AS44: 0 | AT44: 0 | AU44: 0 | AV44: 0 | AW44: 0 | AX44: 0 | AY44: 0 | AZ44: 0 | BA44: 0 | BB44: 0 | BC44: 0
I45: Depreciation charge | J45: Nk | K45: =K37 -> 0 | L45: =L37 -> 0 | M45: =M37 -> 0 | N45: 0 | O45: 2,800,000 | P45: 2,800,000 | Q45: 2,800,000 | R45: 2,800,000 | S45: 2,800,000 | T45: 2,800,000 | U45: 2,800,000 | V45: 2,800,000 | W45: 2,800,000 | X45: 2,800,000 | Y45: 2,800,000 | Z45: 2,800,000 | AA45: 2,800,000 | AB45: 2,800,000 | AC45: 2,800,000 | AD45: 2,800,000 | AE45: =AE37 -> 2,800,000 | AF45: 2,800,000 | AG45: 2,800,000 | AH45: 2,800,000 | AI45: 0 | AJ45: 0 | AK45: 0 | AL45: 0 | AM45: 0 | AN45: 0 | AO45: 0 | AP45: 0 | AQ45: 0 | AR45: =AR37 -> 0 | AS45: 0 | AT45: 0 | AU45: 0 | AV45: 0 | AW45: 0 | AX45: 0 | AY45: 0 | AZ45: 0 | BA45: 0 | BB45: 0 | BC45: 0
I46: Taxable income | J46: Nk | K46: 0 | L46: 0 | M46: 0 | N46: 0 | O46: =O44-O45 -> 14,485,239 | P46: 14,485,239 | Q46: 14,485,239 | R46: 14,485,239 | S46: 14,485,239 | T46: 14,485,239 | U46: 14,485,239 | V46: 14,485,239 | W46: 14,485,239 | X46: 14,485,239 | Y46: 14,485,239 | Z46: 14,485,239 | AA46: 14,485,239 | AB46: 14,485,239 | AC46: 14,485,239 | AD46: 14,485,239 | AE46: =AE44-AE45 -> 14,485,239 | AF46: 14,485,239 | AG46: 14,485,239 | AH46: 14,485,239 | AI46: 0 | AJ46: 0 | AK46: 0 | AL46: 0 | AM46: 0 | AN46: 0 | AO46: 0 | AP46: 0 | AQ46: 0 | AR46: =AR44-AR45 -> 0 | AS46: 0 | AT46: 0 | AU46: 0 | AV46: 0 | AW46: 0 | AX46: 0 | AY46: 0 | AZ46: 0 | BA46: 0 | BB46: 0 | BC46: 0
I47: Income tax expense | J47: Nk | K47: 0 | L47: 0 | M47: 0 | N47: 0 | O47: =$D$31*O46 -> 4,635,276 | P47: 4,635,276 | Q47: 4,635,276 | R47: 4,635,276 | S47: 4,635,276 | T47: 4,635,276 | U47: 4,635,276 | V47: 4,635,276 | W47: 4,635,276 | X47: 4,635,276 | Y47: 4,635,276 | Z47: 4,635,276 | AA47: 4,635,276 | AB47: 4,635,276 | AC47: 4,635,276 | AD47: 4,635,276 | AE47: 4,635,276 | AF47: 4,635,276 | AG47: 4,635,276 | AH47: 4,635,276 | AI47: 0 | AJ47: 0 | AK47: 0 | AL47: 0 | AM47: 0 | AN47: 0 | AO47: 0 | AP47: 0 | AQ47: 0 | AR47: =$D$31*AR46 -> 0 | AS47: 0 | AT47: 0 | AU47: 0 | AV47: 0 | AW47: 0 | AX47: 0 | AY47: 0 | AZ47: 0 | BA47: 0 | BB47: 0 | BC47: 0
M50: s/b zero
I51: ="Startup Year, " &NEM_year -> Startup Year, 2027 | J51: N/MWh | K51: 25,151 | L51: N/MWh | M51: =NPV -> (0)
I52: Equalized Costs | J52: N/MWh | K52: =J109 / D11 -> 786 | L52: N/MWh | M52: =J112 -> 125,636,765
I53: Fuel cost | J53: N/MWh | K53: =J119 / D11 -> 411 | L53: =K53/$K$52 -> 52.3% | M53: =+J122 -> 65,652,079
I54: Fixed O&M | J54: N/MWh | K54: =J129 / D11 -> 114 | L54: 14.4% | M54: =+J132 -> 18,151,355
I55: Variable O&M | J55: N/MWh | K55: =J139 / D11 -> 10 | L55: 1.3% | M55: =+J142 -> 1,647,119
I56: Capital cost | J56: N/MWh | K56: =CapexPayment/D11 -> 184 | L56: 23.4% | M56: =+J89 -> 42,350,000
I57: Tax cost | J57: N/MWh | K57: =TaxPayment/D11 -> 67 | L57: 8.6% | M57: =J102 -> 15,518,145
I58: Carbon tax cost | J58: N/MWh | K58: =(D26 + D27) / D11 -> 0 | L58: 0.0%
I59: Transmission loss cost | J59: N/MWh | K59: =K52-SUM(K53:K58) -> (0) | L59: -0.0%
K60: =SUM(K53:K59) -> 786 | L60: =SUM(L53:L59) -> 100.0%
I66: Begin - Backup Calculations
G69: Need for IPP Calcs | I69: Startup Power Year | J69: yr | K69: 2027
I71: Other info
I77: End - Backup Calculations
I80: Begin - Equalization Calculations
I81: Estimated capital cost calculation
K82: -4 | L82: -3 | M82: -2 | N82: -1 | O82: 1 | P82: 2 | Q82: 3 | R82: 4 | S82: 5 | T82: 6 | U82: 7 | V82: 8 | W82: 9 | X82: 10 | Y82: 11 | Z82: 12 | AA82: 13 | AB82: 14 | AC82: 15 | AD82: 16 | AE82: 17 | AF82: 18 | AG82: 19 | AH82: 20 | AI82: 21 | AJ82: 22 | AK82: 23 | AL82: 24 | AM82: 25 | AN82: 26 | AO82: 27 | AP82: 28 | AQ82: 29 | AR82: 30 | AS82: 31 | AT82: 32 | AU82: 33 | AV82: 34 | AW82: 35 | AX82: 36 | AY82: 37 | AZ82: 38 | BA82: 39 | BB82: 40 | BC82: 41
I84: Capex | J84: Nk | K84: =K18 -> 0 | L84: =L18 -> 0 | M84: =M18 -> 28,000,000 | N84: =N18 -> 28,000,000
I85: Capex NPV | J85: =NPV(WACC, Capex2Yr) -> 42,777,778
I86: Equivalent capex payment | J86: 126,500
I87: Equivalent capex stream | K87: 0 | L87: 0 | M87: 0 | N87: 0 | O87: =$J$86 * O147 -> 126,500 | P87: =$J$86 * P147 -> 126,500 | Q87: =$J$86 * Q147 -> 126,500 | R87: 126,500 | S87: 126,500 | T87: 126,500 | U87: 126,500 | V87: 126,500 | W87: 126,500 | X87: 126,500 | Y87: 126,500 | Z87: 126,500 | AA87: 126,500 | AB87: 126,500 | AC87: 126,500 | AD87: 126,500 | AE87: 126,500 | AF87: 126,500 | AG87: 126,500 | AH87: 126,500 | AI87: 0 | AJ87: 0 | AK87: 0 | AL87: 0 | AM87: 0 | AN87: 0 | AO87: 0 | AP87: 0 | AQ87: 0 | AR87: =$J$86 * AR147 -> 0 | AS87: 0 | AT87: 0 | AU87: 0 | AV87: 0 | AW87: 0 | AX87: 0 | AY87: 0 | AZ87: 0 | BA87: 0 | BB87: 0 | BC87: 0
I88: Equivalent NPV | J88: =NPV(WACC, EqCapex2Yr) -> 427,778
J89: =+CapexNPV-EqCapexNPV -> 42,350,000
I91: Estimated tax cost calculation
K92: -4 | L92: -3 | M92: -2 | N92: -1 | O92: 1 | P92: 2 | Q92: 3 | R92: 4 | S92: 5 | T92: 6 | U92: 7 | V92: 8 | W92: 9 | X92: 10 | Y92: 11 | Z92: 12 | AA92: 13 | AB92: 14 | AC92: 15 | AD92: 16 | AE92: 17 | AF92: 18 | AG92: 19 | AH92: 20 | AI92: 21 | AJ92: 22 | AK92: 23 | AL92: 24 | AM92: 25 | AN92: 26 | AO92: 27 | AP92: 28 | AQ92: 29 | AR92: 30 | AS92: 31 | AT92: 32 | AU92: 33 | AV92: 34 | AW92: 35 | AX92: 36 | AY92: 37 | AZ92: 38 | BA92: 39 | BB92: 40 | BC92: 41
I94: Net Loss | O94: =IF(O46<0,O46,0) -> 0 | P94: 0 | Q94: 0 | R94: 0 | S94: 0 | T94: 0 | U94: 0 | V94: 0 | W94: 0 | X94: 0 | Y94: 0 | Z94: 0 | AA94: 0 | AB94: 0 | AC94: 0 | AD94: 0 | AE94: 0 | AF94: 0 | AG94: 0 | AH94: 0 | AI94: 0 | AJ94: 0 | AK94: 0 | AL94: 0 | AM94: 0 | AN94: 0 | AO94: 0 | AP94: 0 | AQ94: 0 | AR94: =IF(AR46<0,AR46,0) -> 0 | AS94: 0 | AT94: 0 | AU94: 0 | AV94: 0 | AW94: 0 | AX94: 0 | AY94: 0 | AZ94: 0 | BA94: 0 | BB94: 0 | BC94: 0
I95: Net Pre-tax income | O95: =IF(O46>0,O46,0) -> 14,485,239 | P95: 14,485,239 | Q95: 14,485,239 | R95: 14,485,239 | S95: 14,485,239 | T95: 14,485,239 | U95: 14,485,239 | V95: 14,485,239 | W95: 14,485,239 | X95: 14,485,239 | Y95: 14,485,239 | Z95: 14,485,239 | AA95: 14,485,239 | AB95: 14,485,239 | AC95: 14,485,239 | AD95: 14,485,239 | AE95: 14,485,239 | AF95: 14,485,239 | AG95: 14,485,239 | AH95: 14,485,239 | AI95: 0 | AJ95: 0 | AK95: 0 | AL95: 0 | AM95: 0 | AN95: 0 | AO95: 0 | AP95: 0 | AQ95: 0 | AR95: =IF(AR46>0,AR46,0) -> 0 | AS95: 0 | AT95: 0 | AU95: 0 | AV95: 0 | AW95: 0 | AX95: 0 | AY95: 0 | AZ95: 0 | BA95: 0 | BB95: 0 | BC95: 0
I96: Taxable income | O96: =O94+O95+IF(N96<0,N96,0) -> 14,485,239 | P96: 14,485,239 | Q96: 14,485,239 | R96: 14,485,239 | S96: 14,485,239 | T96: 14,485,239 | U96: 14,485,239 | V96: 14,485,239 | W96: 14,485,239 | X96: 14,485,239 | Y96: 14,485,239 | Z96: 14,485,239 | AA96: 14,485,239 | AB96: 14,485,239 | AC96: 14,485,239 | AD96: 14,485,239 | AE96: 14,485,239 | AF96: 14,485,239 | AG96: 14,485,239 | AH96: 14,485,239 | AI96: =AI94+AI95+IF(AH96<0,AH96,0) -> 0 | AJ96: 0 | AK96: 0 | AL96: 0 | AM96: 0 | AN96: 0 | AO96: 0 | AP96: 0 | AQ96: 0 | AR96: =AR94+AR95+IF(AQ96<0,AQ96,0) -> 0 | AS96: =AS94+AS95+IF(AR96<0,AR96,0) -> 0 | AT96: =AT94+AT95+IF(AS96<0,AS96,0) -> 0 | AU96: =AU94+AU95+IF(AT96<0,AT96,0) -> 0 | AV96: =AV94+AV95+IF(AU96<0,AU96,0) -> 0 | AW96: =AW94+AW95+IF(AV96<0,AV96,0) -> 0 | AX96: =AX94+AX95+IF(AW96<0,AW96,0) -> 0 | AY96: =AY94+AY95+IF(AX96<0,AX96,0) -> 0 | AZ96: =AZ94+AZ95+IF(AY96<0,AY96,0) -> 0 | BA96: =BA94+BA95+IF(AZ96<0,AZ96,0) -> 0 | BB96: =BB94+BB95+IF(BA96<0,BA96,0) -> 0 | BC96: =BC94+BC95+IF(BB96<0,BB96,0) -> 0
I97: Tax payable | K97: 0 | L97: 0 | M97: 0 | N97: 0 | O97: =IF(O96>0,O96*$D$31,0) -> 4,635,276 | P97: =IF(P96>0,P96*$D$31,0) -> 4,635,276 | Q97: 4,635,276 | R97: 4,635,276 | S97: 4,635,276 | T97: 4,635,276 | U97: 4,635,276 | V97: 4,635,276 | W97: 4,635,276 | X97: 4,635,276 | Y97: 4,635,276 | Z97: 4,635,276 | AA97: 4,635,276 | AB97: 4,635,276 | AC97: 4,635,276 | AD97: 4,635,276 | AE97: 4,635,276 | AF97: 4,635,276 | AG97: 4,635,276 | AH97: 4,635,276 | AI97: 0 | AJ97: 0 | AK97: 0 | AL97: 0 | AM97: 0 | AN97: 0 | AO97: 0 | AP97: 0 | AQ97: 0 | AR97: =IF(AR96>0,AR96*$D$31,0) -> 0 | AS97: 0 | AT97: 0 | AU97: 0 | AV97: 0 | AW97: 0 | AX97: 0 | AY97: 0 | AZ97: 0 | BA97: 0 | BB97: 0 | BC97: 0
I98: Tax expense NPV | J98: =NPV(WACC,TaxNPV2Yr) -> 15,674,894
I99: Equivalent tax payment | J99: 46,353
I100: Equivalent tax stream | K100: 0 | L100: 0 | M100: 0 | N100: 0 | O100: =$J$99 *O147 -> 46,353 | P100: =$J$99 *P147 -> 46,353 | Q100: 46,353 | R100: 46,353 | S100: 46,353 | T100: 46,353 | U100: 46,353 | V100: 46,353 | W100: 46,353 | X100: 46,353 | Y100: 46,353 | Z100: 46,353 | AA100: 46,353 | AB100: 46,353 | AC100: 46,353 | AD100: 46,353 | AE100: 46,353 | AF100: 46,353 | AG100: 46,353 | AH100: 46,353 | AI100: 0 | AJ100: 0 | AK100: 0 | AL100: 0 | AM100: 0 | AN100: 0 | AO100: 0 | AP100: 0 | AQ100: 0 | AR100: =$J$99 *AR147 -> 0 | AS100: 0 | AT100: 0 | AU100: 0 | AV100: 0 | AW100: 0 | AX100: 0 | AY100: 0 | AZ100: 0 | BA100: 0 | BB100: 0 | BC100: 0
I101: Equivalent NPV | J101: =NPV(WACC, EqTax2Yr) -> 156,749
J102: =+TaxNPV-EqTaxNPV -> 15,518,145
I104: Estimated revenue calculation
K105: -4 | L105: -3 | M105: -2 | N105: -1 | O105: 1 | P105: 2 | Q105: 3 | R105: 4 | S105: 5 | T105: 6 | U105: 7 | V105: 8 | W105: 9 | X105: 10 | Y105: 11 | Z105: 12 | AA105: 13 | AB105: 14 | AC105: 15 | AD105: 16 | AE105: 17 | AF105: 18 | AG105: 19 | AH105: 20 | AI105: 21 | AJ105: 22 | AK105: 23 | AL105: 24 | AM105: 25 | AN105: 26 | AO105: 27 | AP105: 28 | AQ105: 29 | AR105: 30 | AS105: 31 | AT105: 32 | AU105: 33 | AV105: 34 | AW105: 35 | AX105: 36 | AY105: 37 | AZ105: 38 | BA105: 39 | BB105: 40 | BC105: 41
I106: Revenue Before Transmission Loss
K107: =K15 / $D9 -> 0 | L107: 0 | M107: 0 | N107: 0 | O107: 54,039,964 | P107: 54,039,964 | Q107: 54,039,964 | R107: 54,039,964 | S107: 54,039,964 | T107: 54,039,964 | U107: 54,039,964 | V107: 54,039,964 | W107: 54,039,964 | X107: 54,039,964 | Y107: 54,039,964 | Z107: 54,039,964 | AA107: 54,039,964 | AB107: 54,039,964 | AC107: 54,039,964 | AD107: 54,039,964 | AE107: 54,039,964 | AF107: 54,039,964 | AG107: 54,039,964 | AH107: 54,039,964 | AI107: 0 | AJ107: 0 | AK107: 0 | AL107: 0 | AM107: 0 | AN107: 0 | AO107: 0 | AP107: 0 | AQ107: 0 | AR107: =AR15 / $D9 -> 0 | AS107: 0 | AT107: 0 | AU107: 0 | AV107: 0 | AW107: 0 | AX107: 0 | AY107: 0 | AZ107: 0 | BA107: 0 | BB107: 0 | BC107: 0
I108: Revenue NPV | J108: =NPV(WACC, K107:BB107) -> 126,905,823
I109: Equivalent revenue payment | J109: 540,400
I110: Equivalent revenue stream | K110: 0 | L110: 0 | M110: 0 | N110: 0 | O110: =$J109 * O147 -> 540,400 | P110: =$J109 * P147 -> 540,400 | Q110: =$J109 * Q147 -> 540,400 | R110: 540,400 | S110: 540,400 | T110: 540,400 | U110: 540,400 | V110: 540,400 | W110: 540,400 | X110: 540,400 | Y110: 540,400 | Z110: 540,400 | AA110: 540,400 | AB110: 540,400 | AC110: 540,400 | AD110: 540,400 | AE110: 540,400 | AF110: 540,400 | AG110: 540,400 | AH110: 540,400 | AI110: 0 | AJ110: 0 | AK110: 0 | AL110: 0 | AM110: 0 | AN110: 0 | AO110: 0 | AP110: 0 | AQ110: 0 | AR110: =$J109 * AR147 -> 0 | AS110: 0 | AT110: 0 | AU110: 0 | AV110: 0 | AW110: 0 | AX110: 0 | AY110: 0 | AZ110: 0 | BA110: 0 | BB110: 0 | BC110: 0
I111: Equivalent NPV | J111: =NPV(WACC, K110:BB110) -> 1,269,058
J112: =J108-J111 -> 125,636,765
I114: Estimated fuel calculation
K115: -4 | L115: -3 | M115: -2 | N115: -1 | O115: 1 | P115: 2 | Q115: 3 | R115: 4 | S115: 5 | T115: 6 | U115: 7 | V115: 8 | W115: 9 | X115: 10 | Y115: 11 | Z115: 12 | AA115: 13 | AB115: 14 | AC115: 15 | AD115: 16 | AE115: 17 | AF115: 18 | AG115: 19 | AH115: 20 | AI115: 21 | AJ115: 22 | AK115: 23 | AL115: 24 | AM115: 25 | AN115: 26 | AO115: 27 | AP115: 28 | AQ115: 29 | AR115: 30 | AS115: 31 | AT115: 32 | AU115: 33 | AV115: 34 | AW115: 35 | AX115: 36 | AY115: 37 | AZ115: 38 | BA115: 39 | BB115: 40 | BC115: 41
I117: =I21 -> Fuel cost | J117: Nk | K117: 0 | L117: 0 | M117: 0 | N117: 0 | O117: 28,238,836 | P117: 28,238,836 | Q117: 28,238,836 | R117: 28,238,836 | S117: 28,238,836 | T117: 28,238,836 | U117: 28,238,836 | V117: 28,238,836 | W117: 28,238,836 | X117: 28,238,836 | Y117: 28,238,836 | Z117: 28,238,836 | AA117: 28,238,836 | AB117: 28,238,836 | AC117: 28,238,836 | AD117: 28,238,836 | AE117: 28,238,836 | AF117: 28,238,836 | AG117: 28,238,836 | AH117: 28,238,836 | AI117: 0 | AJ117: 0 | AK117: 0 | AL117: 0 | AM117: 0 | AN117: 0 | AO117: 0 | AP117: 0 | AQ117: 0 | AR117: =AR21 -> 0 | AS117: 0 | AT117: 0 | AU117: 0 | AV117: 0 | AW117: 0 | AX117: 0 | AY117: 0 | AZ117: 0 | BA117: 0 | BB117: 0 | BC117: 0
I118: Fuel NPV | J118: =NPV(WACC, K117:AR117) -> 66,315,231
I119: Equivalent fuel costs | J119: 282,388
I120: Equivalent fuel stream | K120: 0 | L120: 0 | M120: 0 | N120: 0 | O120: =$J119 * O147 -> 282,388 | P120: =$J119 * P147 -> 282,388 | Q120: 282,388 | R120: 282,388 | S120: 282,388 | T120: 282,388 | U120: 282,388 | V120: 282,388 | W120: 282,388 | X120: 282,388 | Y120: 282,388 | Z120: 282,388 | AA120: 282,388 | AB120: 282,388 | AC120: 282,388 | AD120: 282,388 | AE120: 282,388 | AF120: 282,388 | AG120: 282,388 | AH120: 282,388 | AI120: 0 | AJ120: 0 | AK120: 0 | AL120: 0 | AM120: 0 | AN120: 0 | AO120: 0 | AP120: 0 | AQ120: 0 | AR120: =$J119 * AR147 -> 0 | AS120: 0 | AT120: 0 | AU120: 0 | AV120: 0 | AW120: 0 | AX120: 0 | AY120: 0 | AZ120: 0 | BA120: 0 | BB120: 0 | BC120: 0
I121: Equivalent NPV | J121: =NPV(WACC, K120:AR120) -> 663,152
J122: =J118-J121 -> 65,652,079
I124: Estimated FOM calculation
K125: -4 | L125: -3 | M125: -2 | N125: -1 | O125: 1 | P125: 2 | Q125: 3 | R125: 4 | S125: 5 | T125: 6 | U125: 7 | V125: 8 | W125: 9 | X125: 10 | Y125: 11 | Z125: 12 | AA125: 13 | AB125: 14 | AC125: 15 | AD125: 16 | AE125: 17 | AF125: 18 | AG125: 19 | AH125: 20 | AI125: 21 | AJ125: 22 | AK125: 23 | AL125: 24 | AM125: 25 | AN125: 26 | AO125: 27 | AP125: 28 | AQ125: 29 | AR125: 30 | AS125: 31 | AT125: 32 | AU125: 33 | AV125: 34 | AW125: 35 | AX125: 36 | AY125: 37 | AZ125: 38 | BA125: 39 | BB125: 40 | BC125: 41
I127: =I19 -> Fixed O&M | J127: Nk | K127: 0 | L127: 0 | M127: 0 | N127: 0 | O127: 7,807,417 | P127: 7,807,417 | Q127: 7,807,417 | R127: 7,807,417 | S127: 7,807,417 | T127: 7,807,417 | U127: 7,807,417 | V127: 7,807,417 | W127: 7,807,417 | X127: 7,807,417 | Y127: 7,807,417 | Z127: 7,807,417 | AA127: 7,807,417 | AB127: 7,807,417 | AC127: 7,807,417 | AD127: 7,807,417 | AE127: 7,807,417 | AF127: 7,807,417 | AG127: 7,807,417 | AH127: 7,807,417 | AI127: 0 | AJ127: 0 | AK127: 0 | AL127: 0 | AM127: 0 | AN127: 0 | AO127: 0 | AP127: 0 | AQ127: 0 | AR127: =AR19 -> 0 | AS127: 0 | AT127: 0 | AU127: 0 | AV127: 0 | AW127: 0 | AX127: 0 | AY127: 0 | AZ127: 0 | BA127: 0 | BB127: 0 | BC127: 0
I128: FOM NPV | J128: =NPV(WACC, K127:BB127) -> 18,334,702
I129: Equivalent FOM costs | J129: 78,074
I130: Equivalent FOM stream | K130: 0 | L130: 0 | M130: 0 | N130: 0 | O130: =$J129 * O147 -> 78,074 | P130: =$J129 * P147 -> 78,074 | Q130: 78,074 | R130: 78,074 | S130: 78,074 | T130: 78,074 | U130: 78,074 | V130: 78,074 | W130: 78,074 | X130: 78,074 | Y130: 78,074 | Z130: 78,074 | AA130: 78,074 | AB130: 78,074 | AC130: 78,074 | AD130: 78,074 | AE130: 78,074 | AF130: 78,074 | AG130: 78,074 | AH130: 78,074 | AI130: 0 | AJ130: 0 | AK130: 0 | AL130: 0 | AM130: 0 | AN130: 0 | AO130: 0 | AP130: 0 | AQ130: 0 | AR130: =$J129 * AR147 -> 0 | AS130: 0 | AT130: 0 | AU130: 0 | AV130: 0 | AW130: 0 | AX130: 0 | AY130: 0 | AZ130: 0 | BA130: 0 | BB130: 0 | BC130: 0
I131: Equivalent NPV | J131: =NPV(WACC, K130:BB130) -> 183,347
J132: =J128-J131 -> 18,151,355
I134: Estimated VOM calculation
K135: -4 | L135: -3 | M135: -2 | N135: -1 | O135: 1 | P135: 2 | Q135: 3 | R135: 4 | S135: 5 | T135: 6 | U135: 7 | V135: 8 | W135: 9 | X135: 10 | Y135: 11 | Z135: 12 | AA135: 13 | AB135: 14 | AC135: 15 | AD135: 16 | AE135: 17 | AF135: 18 | AG135: 19 | AH135: 20 | AI135: 21 | AJ135: 22 | AK135: 23 | AL135: 24 | AM135: 25 | AN135: 26 | AO135: 27 | AP135: 28 | AQ135: 29 | AR135: 30 | AS135: 31 | AT135: 32 | AU135: 33 | AV135: 34 | AW135: 35 | AX135: 36 | AY135: 37 | AZ135: 38 | BA135: 39 | BB135: 40 | BC135: 41
I137: =I20 -> Variable O&M | J137: Nk | K137: 0 | L137: 0 | M137: 0 | N137: 0 | O137: 708,473 | P137: 708,473 | Q137: 708,473 | R137: 708,473 | S137: 708,473 | T137: 708,473 | U137: 708,473 | V137: 708,473 | W137: 708,473 | X137: 708,473 | Y137: 708,473 | Z137: 708,473 | AA137: 708,473 | AB137: 708,473 | AC137: 708,473 | AD137: 708,473 | AE137: 708,473 | AF137: 708,473 | AG137: 708,473 | AH137: 708,473 | AI137: 0 | AJ137: 0 | AK137: 0 | AL137: 0 | AM137: 0 | AN137: 0 | AO137: 0 | AP137: 0 | AQ137: 0 | AR137: =AR20 -> 0 | AS137: 0 | AT137: 0 | AU137: 0 | AV137: 0 | AW137: 0 | AX137: 0 | AY137: 0 | AZ137: 0 | BA137: 0 | BB137: 0 | BC137: 0
I138: VOM NPV | J138: =NPV(WACC, K137:BB137) -> 1,663,756
I139: Equivalent VOM costs | J139: 7,085
I140: Equivalent VOM stream | K140: 0 | L140: 0 | M140: 0 | N140: 0 | O140: =$J139 * O147 -> 7,085 | P140: =$J139 * P147 -> 7,085 | Q140: 7,085 | R140: 7,085 | S140: 7,085 | T140: 7,085 | U140: 7,085 | V140: 7,085 | W140: 7,085 | X140: 7,085 | Y140: 7,085 | Z140: 7,085 | AA140: 7,085 | AB140: 7,085 | AC140: 7,085 | AD140: 7,085 | AE140: 7,085 | AF140: 7,085 | AG140: 7,085 | AH140: 7,085 | AI140: 0 | AJ140: 0 | AK140: 0 | AL140: 0 | AM140: 0 | AN140: 0 | AO140: 0 | AP140: 0 | AQ140: 0 | AR140: =$J139 * AR147 -> 0 | AS140: 0 | AT140: 0 | AU140: 0 | AV140: 0 | AW140: 0 | AX140: 0 | AY140: 0 | AZ140: 0 | BA140: 0 | BB140: 0 | BC140: 0
I141: Equivalent NPV | J141: =NPV(WACC, K140:BB140) -> 16,638
J142: =J138-J141 -> 1,647,119
I143: End - Equalization Calculations
O147: 1 | P147: 1 | Q147: 1 | R147: 1 | S147: 1 | T147: 1 | U147: 1 | V147: 1 | W147: 1 | X147: 1 | Y147: 1 | Z147: 1 | AA147: 1 | AB147: 1 | AC147: 1 | AD147: 1 | AE147: 1 | AF147: 1 | AG147: 1 | AH147: 1

Sheet Gen Prices
B4: First Year Power | D4: ='Input Data'!F8 -> 2028
B5: Forex (N/$) | D5: ='Input Data'!F25 -> 1,600
B6: Delivered fuel price ($/MMbtu) | D6: ='Input Data'!F26 -> 2.60
B7: Capital cost (N/kW) | D7: ='Input Data'!F14*'Input Data'!F25 -> 560,000
B8: Fixed O&M (N/MW/year) | D8: ='Input Data'!F18 -> 78,074,168
B9: Variable O&M (sent out) (N/MWh) | D9: ='Input Data'!F19 -> 1,031
B10: Real Pretax WACC | D10: ='Input Data'!F27 -> 20.0%
B12: Fuel cost (N/MWh) (HHV) | D12: 41,089 | BZF12: 0
B13: Fixed O&M (N/MWh) | D13: 11,360 | BZF13: 0
B14: Variable O&M (N/MWh) | D14: 1,031 | BZF14: 0
B15: Capital cost (N/MWh) | D15: 18,407 | BZF15: 0
B16: Tax cost (N/MWh) | D16: 6,745 | BZF16: 0
B17: Wholesale contract prices (N/MWh) | D17: =SUM(D12:D16) -> 78,632
C26: Macro Control Section - Do Not Delete
G28: 2028 | H28: Enter First Year of Wholesale Prices Calculations
G29: 2028 | H29: Enter Last Year of Wholesale Prices Calculations
C30: Has the user certified the Fuel Page as correct | G30: No
C32: End of Macro Control Section | G32: Yes

Sheet Basis-2011 (hidden)
C1: 2 | D1: 1.3 | E1: 1.5
D2: 2011 | E2: 2012
A3: Tariff Code | D3: Fixed N/month | G3: Energy N/Kwh
A4: Residential R1 | D4: 50.00 | E4: =D4*$D$1 -> 65.00 | G4: 2.20 | H4: =G4*$D$1 -> 2.86
A5: Residential R2 | D5: 300.00 | E5: =D5*$D$1 -> 390.00 | G5: 10.00 | H5: =G5*$E$1 -> 15.00
A6: Residential R3 | D6: 12,509.00 | E6: =D6*$C$1 -> 25,018.00 | G6: 15.60 | H6: =G6*$E$1 -> 23.40
A7: Residential R4 | D7: 78,178.00 | E7: =D7*$E$1 -> 117,267.00 | G7: 15.60 | H7: =G7*$E$1 -> 23.40
A8: Commercial C1 | D8: 272.00 | E8: =D8*$D$1 -> 353.60 | G8: 14.40 | H8: =G8*$D$1 -> 18.72
A9: Commercial C2 | D9: 11,340.00 | E9: =D9*$C$1 -> 22,680.00 | G9: 14.50 | H9: =G9*$E$1 -> 21.75
A10: Commercial C3 | D10: 70,874.00 | E10: =D10*$E$1 -> 106,311.00 | G10: 14.50 | H10: =G10*$E$1 -> 21.75
A11: Industrial 1 | B11: D1 | D11: 201.00 | E11: =D11*$D$1 -> 261.30 | G11: 11.70 | H11: =G11*$E$1 -> 17.55
A12: Industrial D2 | D12: 69,733.00 | E12: =D12*$E$1 -> 104,599.50 | G12: 15.20 | H12: 22.80
A13: Industrial D3 | D13: 70,874.00 | E13: =D13*$E$1 -> 106,311.00 | G13: 15.20 | H13: 22.80
A14: Special 1 | D14: 240.00 | E14: =D14*$D$1 -> 312.00 | G14: 11.20 | H14: 16.80
A15: Special 2 | D15: 31,250.00 | E15: =D15*$D$1 -> 40,625.00 | G15: 11.20 | H15: 16.80
A16: Special 3 | D16: 31,250.00 | E16: =D16*$D$1 -> 40,625.00 | G16: 11.20 | H16: 16.80
A17: Street Lightng S1 | D17: 451.00 | E17: =D17*$D$1 -> 586.30 | G17: 8.60 | H17: 12.90
